bitfinex-derivatives/quotes_BNBF0:USTF0_20250511
["timestamp","ask_amount","ask_price","bid_price","bid_amount"]
[1746952070490,0.303859,658.2,657.16,0.323]
[1746952070891,0.24468683,658.19,657.16,0.323]
[1746952072392,0.26461866,658.18,657.16,0.323]
[1746952072585,0.24468683,658.17,657.16,0.323]
[1746952076194,0.24468683,658.19,657.16,0.323]
[1746952078496,0.26461866,658.18,657.16,0.323]
[1746952078794,0.24468683,658.17,657.16,0.323]
[1746952081397,0.303859,658.2,657.16,0.323]
[1746952081398,0.24468683,658.19,657.16,0.323]
[1746952081698,0.26461866,658.16,657.16,0.323]
[1746952082702,0.24465203,658.15,657.16,0.323]
[1746952086809,0.24465203,658.15,657.02,0.30440473]
[1746952088104,0.24465203,658.19,657.02,0.30440473]
[1746952088310,0.24465203,658.14,657.02,0.30440473]
[1746952088509,0.24465203,658.19,657.02,0.30440473]
[1746952090713,0.24465203,658.19,657.16,0.37]
[1746952096316,0.303859,658.2,657.16,0.37]
[1746952096715,0.24465259,658.19,657.16,0.37]
[1746952099420,0.26459452,658.18,657.16,0.37]
[1746952099818,0.24465259,658.17,657.16,0.37]
[1746952102522,0.26461464,658.16,657.16,0.37]
[1746952102724,0.24465259,658.15,657.16,0.37]
[1746952104720,0.24465259,658.15,657.02,0.30440473]
[1746952105524,0.26462872,658.14,657.02,0.30440473]
[1746952106122,0.24465259,658.13,657.02,0.30440473]
[1746952108025,0.24465259,658.13,657.16,0.325]
[1746952108727,0.2646247,658.12,657.16,0.325]
[1746952108927,0.24465259,658.11,657.16,0.325]
[1746952111524,0.54855777,658.1,657.16,0.325]
[1746952111724,0.81320662,658.1,657.16,0.325]
[1746952112029,0.54856238,658.09,657.16,0.325]
[1746952112226,0.30391441,658.08,657.16,0.325]
[1746952112425,0.548567,658.08,657.16,0.325]
[1746952112723,0.24465259,658.07,657.16,0.325]
[1746952112927,0.30392365,658.06,657.16,0.325]
[1746952113331,0.24465259,658.05,657.16,0.325]
[1746952113830,0.24465259,658.04,657.16,0.325]
[1746952114327,0.24465259,658.05,657.16,0.325]
[1746952114733,0.24465259,658.04,657.16,0.325]
[1746952114931,0.50931553,658.04,657.16,0.325]
[1746952115131,0.24465259,658.03,657.16,0.325]
[1746952115532,0.24465259,658.02,657.16,0.325]
[1746952116035,0.24465259,658.03,657.16,0.325]
[1746952116432,0.26466294,658.04,657.16,0.325]
[1746952116433,0.24465259,658.02,657.16,0.325]
[1746952116833,0.26466294,658.04,657.16,0.325]
[1746952116834,0.24465259,658.03,657.16,0.325]
[1746952117130,0.24465259,658.02,657.16,0.325]
[1746952117527,0.24465259,658.03,657.16,0.325]
[1746952117929,0.24465259,658.02,657.16,0.325]
[1746952118134,0.24465259,658.01,657.16,0.325]
[1746952118436,0.24465259,658.0,657.16,0.325]
[1746952118938,0.24465259,658.05,657.16,0.325]
[1746952119435,0.30392365,658.06,657.16,0.325]
[1746952119436,0.50931553,658.04,657.16,0.325]
[1746952119937,0.24465259,658.03,657.16,0.325]
[1746952120236,0.24465259,658.02,657.16,0.325]
[1746952120538,0.24465259,658.01,657.16,0.325]
[1746952120933,0.24465259,658.0,657.16,0.325]
[1746952121338,0.24465259,657.99,657.16,0.325]
[1746952121838,0.24465259,657.98,657.16,0.325]
[1746952122033,0.24465259,657.97,657.16,0.325]
[1746952122439,0.50930747,657.96,657.16,0.325]
[1746952122739,0.24465259,657.95,657.16,0.325]
[1746952123540,0.26465488,657.94,657.16,0.325]
[1746952123932,0.24465259,657.93,657.16,0.325]
[1746952124343,0.26465488,657.94,657.16,0.325]
[1746952124739,0.244739,657.93,657.16,0.325]
[1746952126740,0.26465488,657.94,657.16,0.325]
[1746952127042,0.24473864,657.93,657.16,0.325]
[1746952129643,0.26465488,657.92,657.16,0.325]
[1746952129943,0.24473864,657.91,657.16,0.325]
[1746952132844,0.26463878,657.93,657.16,0.325]
[1746952133144,0.24473864,657.92,657.02,0.30440473]
[1746952135445,0.24473864,657.92,657.16,0.299]
[1746952135646,0.26464885,657.91,657.16,0.299]
[1746952135945,0.24473864,657.9,657.16,0.299]
[1746952138443,0.24473864,658.05,657.16,0.29411636]
[1746952138647,0.24473864,658.05,657.02,0.30440473]
[1746952140150,0.26464885,658.04,657.02,0.30440473]
[1746952140649,0.24473864,658.03,657.02,0.30440473]
[1746952141852,0.2646569,658.02,657.02,0.30440473]
[1746952142151,0.24473864,658.01,657.02,0.30440473]
[1746952147457,0.24473864,658.05,657.02,0.30440473]
[1746952147758,0.26466294,658.0,657.02,0.30440473]
[1746952148360,0.24473864,657.99,657.02,0.30440473]
[1746952150460,0.26466294,657.98,657.02,0.30440473]
[1746952150961,0.24473864,657.97,657.02,0.30440473]
[1746952151256,0.24473864,657.96,657.02,0.30440473]
[1746952151661,0.24473864,657.95,657.02,0.30440473]
[1746952151960,0.24473864,657.97,657.02,0.30440473]
[1746952152456,0.24473864,657.96,657.02,0.30440473]
[1746952152763,0.24473864,657.97,657.02,0.30440473]
[1746952153456,0.26466294,657.96,657.02,0.30440473]
[1746952153962,0.24473864,657.95,657.02,0.30440473]
[1746952154864,0.26466294,657.96,657.02,0.30440473]
[1746952155365,0.2445363,657.95,657.02,0.30440473]
[1746952155566,0.23557748,657.95,657.02,0.30440473]
[1746952156464,0.26469917,657.94,657.02,0.30440473]
[1746952156964,0.24456571,657.93,657.02,0.30440473]
[1746952159566,0.26469917,657.92,657.02,0.30440473]
[1746952160064,0.24456571,657.91,657.02,0.30440473]
[1746952162666,0.26470118,657.9,657.02,0.30440473]
[1746952162867,0.24456571,657.89,657.02,0.30440473]
[1746952164469,0.24456571,657.88,657.02,0.30440473]
[1746952164869,0.24456571,657.87,657.02,0.30440473]
[1746952165169,0.24456571,657.89,657.02,0.30440473]
[1746952165669,0.26471528,657.86,657.02,0.30440473]
[1746952166370,0.24456571,657.85,657.02,0.30440473]
[1746952168463,0.56874057,657.84,657.02,0.30440473]
[1746952168666,0.24456571,657.83,657.02,0.30440473]
[1746952168868,0.30403453,657.82,657.02,0.30440473]
[1746952169372,0.24456571,657.81,657.02,0.30440473]
[1746952171568,0.26473944,657.8,657.02,0.30440473]
[1746952172573,0.24456571,657.79,657.02,0.30440473]
[1746952174673,0.26473944,657.78,657.02,0.30440473]
[1746952175078,0.24456571,657.77,657.02,0.30440473]
[1746952177678,0.26473944,657.76,657.02,0.30440473]
[1746952178378,0.24456571,657.75,657.02,0.30440473]
[1746952180584,0.26473944,657.74,657.02,0.30440473]
[1746952180882,0.24456571,657.73,657.02,0.30440473]
[1746952182083,0.24456571,657.72,657.02,0.30440473]
[1746952182383,0.24456571,657.71,657.02,0.30440473]
[1746952182684,0.24456571,657.7,657.02,0.30440473]
[1746952182983,0.24456571,657.73,657.02,0.30440473]
[1746952183585,0.26473944,657.72,657.02,0.30440473]
[1746952183979,0.24456571,657.71,657.02,0.30440473]
[1746952186480,0.24456571,657.81,657.02,0.30440473]
[1746952186683,0.26473944,657.7,657.02,0.30440473]
[1746952186884,0.24456571,657.8,657.02,0.30440473]
[1746952187086,0.26473944,657.69,657.02,0.30440473]
[1746952187387,0.24456571,657.79,657.02,0.30440473]
[1746952187582,0.24456571,657.68,657.02,0.30440473]
[1746952187888,0.24456571,657.81,657.02,0.30440473]
[1746952188189,0.24456571,657.8,657.02,0.30440473]
[1746952188982,0.24456571,657.79,657.02,0.30440473]
[1746952189387,0.24456571,657.78,657.02,0.30440473]
[1746952189687,0.24456571,657.77,657.02,0.30440473]
[1746952190186,0.24456571,657.76,657.02,0.30440473]
[1746952190787,0.24456571,657.8,657.02,0.30440473]
[1746952191186,0.24456571,657.79,657.02,0.30440473]
[1746952191586,0.24456571,657.78,657.02,0.30440473]
[1746952191886,0.24456571,657.77,657.02,0.30440473]
[1746952192282,0.24456571,657.8,657.02,0.30440473]
[1746952195584,0.3040484,657.79,657.02,0.30440473]
[1746952195788,0.56880799,657.79,657.02,0.30440473]
[1746952196091,0.24456571,657.78,657.02,0.30440473]
[1746952197490,0.30405764,657.77,657.02,0.30440473]
[1746952198791,0.24456571,657.76,657.02,0.30440473]
[1746952199294,0.30406689,657.75,657.02,0.30440473]
[1746952199592,0.24456571,657.74,657.02,0.30440473]
[1746952199786,0.30407614,657.73,657.02,0.30440473]
[1746952200393,0.24456571,657.72,657.02,0.30440473]
[1746952200593,0.54864647,657.72,657.02,0.30440473]
[1746952201295,0.24456571,657.71,657.02,0.30440473]
[1746952202397,0.26475354,657.7,657.02,0.30440473]
[1746952202794,0.24456571,657.69,657.02,0.30440473]
[1746952203596,0.24456571,657.69,657.15,0.01791707]
[1746952203993,0.24456571,657.69,657.02,0.30440473]
[1746952204196,0.24456571,657.69,657.02,0.23489188]
[1746952204591,0.26478275,657.68,657.02,0.23489188]
[1746952204899,0.24456571,657.67,657.02,0.23489188]
[1746952205197,0.54866959,657.67,657.02,0.23489188]
[1746952205493,0.54867421,657.66,657.02,0.23489188]
[1746952205696,0.30411313,657.65,657.02,0.23489188]
[1746952205895,0.54867884,657.65,657.02,0.23489188]
[1746952206195,0.24456571,657.64,657.02,0.23489188]
[1746952206496,0.30412237,657.63,657.02,0.23489188]
[1746952206997,0.24456571,657.62,657.02,0.23489188]
[1746952207597,0.26481398,657.61,657.02,0.23489188]
[1746952207990,0.5689456,657.61,657.02,0.23489188]
[1746952208196,0.24456571,657.6,657.02,0.23489188]
[1746952210297,2.21969949,657.6,657.02,0.23489188]
[1746952210498,0.26480592,657.59,657.02,0.23489188]
[1746952210797,0.24456571,657.58,657.02,0.23489188]
[1746952213497,0.26482809,657.57,657.02,0.23489188]
[1746952213694,0.26482809,657.57,657.02,0.01551587]
[1746952214000,0.24456571,657.56,657.02,0.01551587]
[1746952214396,0.24456571,657.56,656.95,0.16521001]
[1746952215398,0.24456571,657.55,656.95,0.16521001]
[1746952215805,0.24456571,657.54,656.95,0.16521001]
[1746952216102,0.24456571,657.53,656.95,0.16521001]
[1746952216498,0.26484119,657.52,656.95,0.16521001]
[1746952216701,0.5094069,657.52,656.95,0.16521001]
[1746952217002,0.24456571,657.51,656.95,0.16521001]
[1746952219407,0.24456571,657.5,656.95,0.16521001]
[1746952219807,0.24456571,657.51,656.95,0.16521001]
[1746952220208,0.24456571,657.5,656.95,0.16521001]
[1746952220507,0.24456571,657.51,656.95,0.16521001]
[1746952221510,0.3041825,657.5,656.95,0.16521001]
[1746952222708,0.2648674,657.49,656.95,0.16521001]
[1746952223504,0.30419176,657.48,656.95,0.16521001]
[1746952223708,0.30419176,657.48,656.95,0.0118189]
[1746952224106,0.24456571,657.47,656.95,0.0118189]
[1746952224303,0.30420101,657.46,656.95,0.0118189]
[1746952224509,0.54876672,657.46,656.95,0.0118189]
[1746952224703,0.24456571,657.45,656.83,0.30449279]
[1746952224909,0.24456571,657.45,656.86,0.25248824]
[1746952225710,0.26487848,657.44,656.86,0.25248824]
[1746952226009,0.24456571,657.43,656.86,0.25248824]
[1746952228706,0.26487848,657.42,656.86,0.25248824]
[1746952229006,0.24456571,657.41,656.86,0.25248824]
[1746952230411,0.24456571,657.4,656.86,0.25248824]
[1746952230711,0.26487848,657.42,656.86,0.25248824]
[1746952231108,0.24478269,657.41,656.86,0.25248824]
[1746952231511,0.24478269,657.4,656.86,0.25248824]
[1746952231709,0.24478269,657.39,656.86,0.25248824]
[1746952232615,0.24478269,657.38,656.86,0.25248824]
[1746952232916,1.97513378,657.31,656.86,0.25248824]
[1746952233418,0.24478269,657.3,656.86,0.25248824]
[1746952233718,0.24478269,657.29,656.86,0.25248824]
[1746952234117,0.24478269,657.3,656.86,0.25248824]
[1746952234712,0.26489965,657.29,656.86,0.25248824]
[1746952235018,0.24478269,657.28,656.86,0.25248824]
[1746952237419,0.24478269,657.45,656.86,0.25248824]
[1746952237619,0.26488453,657.27,656.86,0.25248824]
[1746952237819,0.24478269,657.26,656.86,0.25248824]
[1746952238117,0.2648926,657.26,656.86,0.25248824]
[1746952238520,0.24478269,657.25,656.86,0.25248824]
[1746952238719,0.24478269,657.25,656.83,0.15788849]
[1746952240619,0.26512468,657.24,656.83,0.15788849]
[1746952240921,0.24478269,657.23,656.83,0.15788849]
[1746952243619,0.2651368,657.22,656.83,0.15788849]
[1746952244118,0.24478269,657.21,656.83,0.15788849]
[1746952246923,0.24478269,657.26,656.83,0.15788849]
[1746952247526,0.26513983,657.25,656.83,0.15788849]
[1746952247924,0.24478269,657.24,656.83,0.15788849]
[1746952249623,0.26515902,657.23,656.83,0.04585101]
[1746952250129,0.24478269,657.22,656.83,0.04585101]
[1746952254030,0.26515902,657.23,656.83,0.04585101]
[1746952254431,0.24491022,657.22,656.83,0.04585101]
[1746952255530,0.24491022,657.22,656.83,0.00344929]
[1746952255726,0.26524896,657.21,656.83,0.00344929]
[1746952256432,0.24491022,657.2,656.83,0.00344929]
[1746952258632,0.26525704,657.19,656.83,0.00344929]
[1746952258835,0.24491022,657.18,656.83,0.00344929]
[1746952259137,0.24491022,657.18,656.68,0.325]
[1746952259632,0.24491022,657.17,656.68,0.325]
[1746952260040,0.24491022,657.16,656.68,0.09520815]
[1746952260333,0.24491022,657.16,653.85,0.96606346]
[1746952260535,0.24491022,657.18,653.86,0.30495398]
[1746952260731,0.24491022,657.18,654.01,0.30580572]
[1746952260934,0.24491022,657.18,654.02,0.30495398]
[1746952261137,0.24491022,657.18,654.03,1.48046702]
[1746952261338,0.24491022,657.18,654.04,0.58514215]
[1746952261640,0.24491022,657.18,654.05,1.48046702]
[1746952261833,0.24491022,657.18,654.06,0.30495398]
[1746952262033,0.24491022,657.18,654.07,1.48046702]
[1746952262235,0.24491022,657.18,654.08,0.30495398]
[1746952262440,0.24491022,657.18,654.09,1.48046702]
[1746952262738,0.24491022,657.18,654.1,0.30495398]
[1746952262934,0.24491022,657.18,654.09,1.45570121]
[1746952262935,0.24491022,657.18,654.11,0.30495398]
[1746952263140,0.24491022,657.18,654.12,0.30490025]
[1746952263340,0.24491022,657.18,654.13,1.76060146]
[1746952263536,0.24491022,657.18,654.14,0.30490025]
[1746952263738,0.24491022,657.18,654.15,0.30490025]
[1746952263936,0.24491022,657.18,654.16,0.30490025]
[1746952264135,0.24491022,657.18,654.17,0.30490025]
[1746952264337,0.24491022,657.18,654.18,0.58508842]
[1746952264538,0.24491022,657.18,654.19,0.30490025]
[1746952264735,0.26522268,657.17,654.2,0.30490025]
[1746952264941,0.24491022,657.16,654.21,1.76060146]
[1746952265141,0.24491022,657.16,654.22,0.30490025]
[1746952265335,0.24491022,657.16,654.23,0.30490025]
[1746952265538,0.24491022,657.16,654.24,0.30490025]
[1746952265740,0.24491022,657.16,654.25,0.30490025]
[1746952266035,0.24491022,657.16,654.26,1.48041329]
[1746952266337,0.24491022,657.16,654.27,1.48041329]
[1746952266542,0.26522268,657.17,654.28,0.30490025]
[1746952266740,0.26522268,657.17,654.29,0.30490025]
[1746952266942,0.24490842,657.16,654.3,1.48041329]
[1746952267237,0.24490842,657.16,654.31,0.58501038]
[1746952267538,0.24490842,657.16,654.32,1.48041329]
[1746952267840,0.24490842,657.16,654.33,0.30490025]
[1746952268042,0.24490842,657.16,654.34,0.30490025]
[1746952268243,0.24490842,657.16,654.35,0.30490025]
[1746952268440,0.24490842,657.16,654.36,0.30490025]
[1746952268641,0.24490842,657.16,654.37,0.58501038]
[1746952268842,0.24490842,657.16,654.38,0.30490025]
[1746952269044,0.26522268,657.17,654.39,0.30490025]
[1746952269242,0.24493282,657.16,654.4,0.58503506]
[1746952269443,0.24493282,657.16,654.41,0.30490025]
[1746952269645,0.24493282,657.16,654.42,0.30490025]
[1746952269844,0.24493282,657.16,654.43,1.48041329]
[1746952270045,0.24493282,657.15,654.44,0.30490025]
[1746952270243,0.24493282,657.15,654.45,0.30490025]
[1746952270441,0.24493282,657.15,654.46,1.48041329]
[1746952270746,0.51016864,657.14,654.47,0.30490025]
[1746952270943,0.51016864,657.14,654.48,0.30490025]
[1746952271146,0.24493282,657.13,654.49,0.30490025]
[1746952271346,0.24493282,657.13,654.5,0.30490025]
[1746952271543,0.24493282,657.12,654.51,0.30490025]
[1746952271747,0.24493282,657.12,654.52,0.30490025]
[1746952271947,0.24493282,657.11,654.53,0.58503506]
[1746952272147,0.24493282,657.11,654.54,0.30490025]
[1746952272347,0.24493282,657.1,654.55,0.30490025]
[1746952272547,0.24493282,657.1,654.56,1.48041329]
[1746952272741,0.24493282,657.09,654.57,0.30490025]
[1746952272945,0.24493282,657.09,654.58,0.30490025]
[1746952273145,0.24493282,657.08,654.59,1.48041329]
[1746952273349,0.24493282,657.08,654.6,0.30490025]
[1746952273551,0.24493282,657.07,654.61,0.30490025]
[1746952273845,0.24493282,657.07,654.62,0.28013481]
[1746952274143,0.24493282,657.06,654.63,0.30498435]
[1746952274347,0.24493282,657.06,654.64,0.30498435]
[1746952274548,0.24493282,657.06,654.65,0.30498435]
[1746952274748,0.24493282,657.05,654.66,0.58511916]
[1746952274944,0.24493282,657.05,654.67,0.30498435]
[1746952275149,0.24493282,657.05,654.68,1.48049739]
[1746952275349,0.24493282,657.04,654.69,0.30498435]
[1746952275650,0.24493282,657.03,654.7,1.7606322]
[1746952275844,0.26523582,657.14,654.71,0.30498435]
[1746952276047,0.26523582,657.14,654.72,0.30498435]
[1746952276245,0.24503541,657.13,654.73,1.76073582]
[1746952276442,0.24503541,657.13,654.74,0.30498435]
[1746952276646,0.24503541,657.13,654.75,0.30498435]
[1746952276843,0.24503541,657.12,654.76,0.30498435]
[1746952277049,0.24503541,657.12,654.77,0.30498435]
[1746952277249,0.24503541,657.11,654.78,0.30498435]
[1746952277551,0.24503541,657.1,654.79,1.76073582]
[1746952277743,0.24503541,657.1,654.8,1.48049739]
[1746952278051,0.24503541,657.09,654.81,1.48049739]
[1746952278252,0.24503541,657.09,654.82,0.30498435]
[1746952278450,0.24503541,657.09,654.83,0.30498435]
[1746952278648,0.24503541,657.08,654.84,0.30498435]
[1746952278847,0.26523582,657.14,654.85,1.48049739]
[1746952279051,0.26523582,657.14,654.86,0.30498435]
[1746952279250,0.30421027,657.44,654.87,0.30498435]
[1746952279251,0.24502192,657.13,654.87,0.30498435]
[1746952279453,0.24502192,657.13,654.88,1.48049739]
[1746952279649,0.24502192,657.12,654.89,0.30498435]
[1746952279849,0.24502192,657.11,654.9,1.48049739]
[1746952280049,0.24502192,657.11,654.91,0.30498435]
[1746952280251,0.24502192,657.12,654.92,1.48049739]
[1746952280451,0.24502192,657.12,654.93,0.30498435]
[1746952280649,0.26523784,657.13,654.94,0.30498435]
[1746952280851,0.26523784,657.13,654.95,1.48049739]
[1746952281151,0.24501875,657.12,654.96,0.30498435]
[1746952281857,0.24501875,657.12,654.97,1.17551304]
[1746952282060,0.24501875,657.12,654.98,0.30498435]
[1746952282259,0.24501875,657.12,654.99,0.30498435]
[1746952282457,0.24501875,657.12,655.0,0.30498435]
[1746952282658,0.24501875,657.12,655.01,0.30498435]
[1746952282957,0.24501875,657.12,655.02,0.30505239]
[1746952283158,0.24501875,657.11,655.03,0.30505239]
[1746952283360,0.24501875,657.11,655.04,0.30505239]
[1746952283658,0.24501875,657.12,655.05,0.30505239]
[1746952283857,0.26523784,657.13,654.48,0.26523784]
[1746952283858,0.24501875,657.1,655.06,1.48056543]
[1746952284058,0.24501875,657.1,655.07,0.30505239]
[1746952284260,0.24501875,657.12,655.08,0.30505239]
[1746952284559,0.24501875,657.12,655.09,1.48056543]
[1746952284757,0.24501875,657.12,655.1,0.30505239]
[1746952284957,0.24501875,657.12,655.11,1.48056543]
[1746952285153,0.24501875,657.12,655.12,1.48056543]
[1746952285459,0.24501875,657.12,655.13,0.30505239]
[1746952285655,0.26520651,657.11,655.14,0.30505239]
[1746952285858,0.26520651,657.11,655.15,0.30505239]
[1746952286059,0.24501875,657.1,655.16,1.48056543]
[1746952286259,0.24501875,657.1,655.17,0.30505239]
[1746952286455,0.24501875,657.1,655.17,1.17551304]
[1746952286659,0.24501875,657.1,655.18,1.48055595]
[1746952286960,0.24501875,657.1,655.19,0.30504291]
[1746952287161,0.24501875,657.1,655.2,1.48055595]
[1746952287363,0.24501875,657.1,655.21,0.30504291]
[1746952287660,0.24501875,657.1,655.22,0.30504291]
[1746952287858,0.24501875,657.1,655.23,1.48055595]
[1746952288058,0.24501875,657.1,655.24,0.30504291]
[1746952288258,0.24501875,657.1,655.25,0.30504291]
[1746952288459,0.24501875,657.1,655.26,1.48050877]
[1746952288659,0.24501875,657.1,655.27,0.30499573]
[1746952288855,0.24501875,657.1,655.28,0.30499573]
[1746952289055,0.24501875,657.1,655.29,0.30499573]
[1746952289261,0.24501875,657.09,655.3,0.30499573]
[1746952289463,0.24501875,657.08,655.31,0.30499573]
[1746952289762,0.24501875,657.07,655.32,0.30499573]
[1746952290061,0.24501875,657.07,655.33,0.30501811]
[1746952290263,0.24501875,657.07,655.34,1.48053115]
[1746952290457,0.24501875,657.06,655.35,1.48053115]
[1746952290656,0.24501875,657.05,655.36,0.30501811]
[1746952290857,0.24501875,657.05,655.37,0.30501811]
[1746952291058,0.24501875,657.04,655.37,0.381]
[1746952291256,0.24501875,657.04,655.38,1.17551304]
[1746952291461,0.24501875,657.03,655.39,1.17551304]
[1746952291664,0.24501875,657.02,655.37,0.381]
[1746952291965,0.24501875,657.01,655.37,0.381]
[1746952292369,0.24501875,657.0,655.37,0.381]
[1746952292762,0.24501875,656.99,655.37,0.381]
[1746952293069,0.24501875,656.98,655.37,0.381]
[1746952293366,0.24501875,656.97,655.37,0.381]
[1746952293868,0.24501875,656.96,655.37,0.381]
[1746952294269,0.24501875,656.95,655.37,0.381]
[1746952294567,0.51034253,656.95,655.37,0.381]
[1746952294770,1.97513378,656.91,655.37,0.381]
[1746952295069,0.24501875,656.9,655.37,0.381]
[1746952295266,0.24501875,656.89,655.38,1.17588794]
[1746952295670,0.24501875,656.89,655.39,0.30516181]
[1746952295871,0.54948836,656.88,655.4,1.17591726]
[1746952296170,0.24501875,656.87,655.41,1.17591726]
[1746952296371,0.24501875,656.87,655.42,1.17591726]
[1746952296670,0.30447888,656.86,655.43,1.48106044]
[1746952296971,0.30447888,656.86,655.44,0.30513853]
[1746952297271,0.24501875,656.85,655.44,0.30513853]
[1746952297669,0.24501875,656.84,655.44,0.30513853]
[1746952297867,0.51023233,656.84,655.44,0.30513853]
[1746952298171,0.54951154,656.83,655.44,0.30513853]
[1746952298370,0.30449742,656.82,655.44,0.30513853]
[1746952298673,0.24501875,656.81,655.44,0.30513853]
[1746952298975,0.30450669,656.8,655.44,0.30513853]
[1746952299369,0.24501875,656.79,655.44,0.30513853]
[1746952299669,0.30450669,656.8,655.44,0.30513853]
[1746952300174,0.24491657,656.79,655.44,0.30513853]
[1746952300576,0.5494279,656.79,655.44,0.30513853]
[1746952300776,0.26522369,656.78,655.44,0.30513853]
[1746952301075,0.51014026,656.78,655.44,0.30513853]
[1746952301376,0.24491657,656.77,655.44,0.30513853]
[1746952303574,0.24491657,656.78,655.44,0.30513853]
[1746952303774,0.26521459,656.76,655.44,0.30513853]
[1746952304279,0.24491657,656.75,655.44,0.30513853]
[1746952306178,0.26521459,656.76,655.44,0.30513853]
[1746952306179,0.24491657,656.74,655.44,0.30513853]
[1746952306578,0.24491657,656.73,655.44,0.30513853]
[1746952306977,0.24491657,656.72,655.44,0.30513853]
[1746952307374,0.24491657,656.71,655.44,0.30513853]
[1746952307679,0.24491657,656.74,655.44,0.30513853]
[1746952309972,0.26521459,656.76,655.44,0.30513853]
[1746952310479,0.24487523,656.75,655.44,0.30513853]
[1746952311079,0.26521459,656.76,655.44,0.30513853]
[1746952311481,0.24485403,656.75,655.44,0.30513853]
[1746952312575,0.26523481,656.74,655.44,0.30513853]
[1746952312776,0.24485403,656.73,655.44,0.30513853]
[1746952313780,0.30454379,656.72,655.44,0.30513853]
[1746952314081,0.24485403,656.71,655.44,0.30513853]
[1746952314781,0.24485403,656.7,655.44,0.30513853]
[1746952314976,0.3045577,656.69,655.44,0.30513853]
[1746952315282,0.54941173,656.69,655.44,0.30513853]
[1746952315580,0.24485403,656.68,655.44,0.30513853]
[1746952315781,0.30456698,656.67,655.44,0.30513853]
[1746952315981,0.54942101,656.67,655.44,0.30513853]
[1746952316177,0.24485403,656.66,655.44,0.30513853]
[1746952316376,0.30457625,656.65,655.44,0.30513853]
[1746952316676,0.30457625,656.65,655.45,0.242]
[1746952316982,0.24485403,656.64,655.45,0.242]
[1746952321588,0.24485403,656.64,655.46,1.17335239]
[1746952321980,0.24485403,656.64,655.47,0.30491615]
[1746952322181,0.24485403,656.64,655.48,0.30491615]
[1746952322383,0.24485403,656.64,655.49,1.47826854]
[1746952322581,0.24485403,656.64,655.5,1.47826854]
[1746952322884,0.24485403,656.64,655.51,0.30491615]
[1746952323084,0.24485403,656.64,655.5,1.17335239]
[1746952323284,0.24485403,656.64,655.51,1.17335239]
[1746952323483,0.24485403,656.64,655.45,0.242]
[1746952323885,0.24485403,656.64,655.46,1.1733179]
[1746952324092,0.24485403,656.64,655.47,1.1733179]
[1746952324493,0.24485403,656.64,655.45,0.242]
[1746952324993,0.24485403,656.64,655.46,1.17347093]
[1746952325494,0.30457625,656.65,655.45,0.242]
[1746952325797,0.2449414,656.64,655.45,0.242]
[1746952327693,0.26522975,656.63,655.45,0.242]
[1746952328194,0.2449414,656.62,655.45,0.242]
[1746952329898,0.26522975,656.63,655.45,0.242]
[1746952330396,0.24491647,656.62,655.45,0.242]
[1746952331197,0.24491647,656.62,655.46,1.17608504]
[1746952331997,0.24491647,656.62,655.47,1.17608504]
[1746952332198,0.26522975,656.63,655.47,1.17608504]
[1746952332398,0.24484458,656.62,655.47,1.17608504]
[1746952332591,0.24484458,656.62,655.45,0.242]
[1746952333198,0.24484458,656.62,655.46,1.17613627]
[1746952333797,0.24484458,656.62,655.45,0.242]
[1746952333993,0.24484458,656.64,655.45,0.242]
[1746952334599,0.24484458,656.64,655.46,1.17619288]
[1746952335394,0.24484458,656.64,655.45,0.242]
[1746952336502,0.24484458,656.64,655.46,1.17614402]
[1746952336698,0.24484458,656.64,655.47,1.17614402]
[1746952336997,0.24484458,656.64,655.48,1.17614402]
[1746952337302,0.24484458,656.64,655.45,0.242]
[1746952338003,0.24484458,656.64,655.46,1.17585991]
[1746952338203,0.24484458,656.64,655.47,1.17585991]
[1746952338803,0.24484458,656.64,655.46,1.17585991]
[1746952340000,0.24484458,656.64,655.45,1.17585991]
[1746952340901,0.24484458,656.64,655.46,0.30498784]
[1746952341098,0.24484458,656.64,655.47,1.48084775]
[1746952341303,0.24484458,656.64,655.48,0.30498784]
[1746952341501,0.24484458,656.64,655.47,1.17585991]
[1746952341502,0.24484458,656.64,655.49,1.48084775]
[1746952341805,0.24484458,656.64,655.49,1.17585991]
[1746952342108,0.24484458,656.64,655.5,0.29]
[1746952342500,0.24484458,656.64,655.51,1.48083293]
[1746952342702,0.30457625,656.65,655.52,0.30497302]
[1746952342907,0.30457625,656.65,655.53,0.30497302]
[1746952343108,0.30457625,656.65,655.54,1.48083293]
[1746952343309,0.24483958,656.64,655.55,0.30497302]
[1746952343606,0.24483958,656.64,655.56,1.48083293]
[1746952343807,0.24483958,656.64,655.56,1.17585991]
[1746952344006,0.24483958,656.64,655.57,1.17585991]
[1746952344207,0.30457625,656.65,655.57,1.17585991]
[1746952344503,0.24485336,656.64,655.58,1.17585991]
[1746952345208,0.24485336,656.64,655.59,1.17585991]
[1746952345603,0.24485336,656.64,655.6,1.17585991]